[Event "1st Konde Memorial 2025"]
[Site "Pune"]
[Date "2025.02.02"]
[Round "4.10"]
[White "Bakhare Atharva"]
[Black "Shejal Sahil Sanjay"]
[Result "0-1"]
[Annotator "NA"]
[ECO "B05"]
[WhiteElo "1772"]
[BlackElo "1864"]
[PlyCount "82"]
[EventDate "2025.02.01"]
[EventType "swiss"]
[EventCountry "IND"]
[SourceTitle "playchess.com"]
[Source "ChessBase"]
[SourceQuality "1"]
[TimeControl "900+5"]

1. e4 {[%emt 0:00:01]} Nf6 {[%emt 0:00:01]} 2. e5 {[%emt 0:00:01]} Nd5 {[%emt 0:00:01]} 3. d4 {[%emt 0:00:01]} d6 {[%emt 0:00:01]} 4. Nf3 {[%emt 0:00:01]} Bg4 {[%emt 0:00:01]} 5. Be2 {[%emt 0:00:01]} Nc6 {[%emt 0:00:05]} 6. c4 {[%emt 0:00:19]} Nb6 {[%emt 0:00:01]} 7. exd6 {[%emt 0:00:28]} exd6 {[%emt 0:00:02]} 8. b3 {[%emt 0:00:10]} Be7 {[%emt 0:00:06]} 9. Nc3 {[%emt 0:00:07]} O-O {[%emt 0:00:09]} 10. O-O {[%emt 0:00:03]} Re8 {[%emt 0:00:05]} 11. a4 {[%emt 0:00:21]} a5 {[%emt 0:00:16]} 12. Be3 {[%emt 0:00:15]} Bf6 {[%emt 0:00:33]} 13. Qd2 {[%emt 0:00:16]} Nb4 {[%emt 0:00:44]} 14. h3 {[%emt 0:00:15]} Bf5 {[%emt 0:00:16]} 15. Rac1 {[%emt 0:00:18]} d5 {[%emt 0:00:55]} 16. c5 {[%emt 0:00:16]} Nd7 {[%emt 0:00:18]} 17. Nb5 {[%emt 0:00:20]} Be7 {[%emt 0:01:01]} 18. Bf4 {[%emt 0:00:16]} Rc8 {[%emt 0:00:30]} 19. Rfe1 {[%emt 0:00:47]} Nf6 {[%emt 0:00:42]} 20. Ne5 {[%emt 0:00:44]} Ne4 {[%emt 0:00:34]} 21. Qe3 {[%emt 0:00:47]} c6 {[%emt 0:00:06]} 22. Nc3 {[%emt 0:01:11]} f6 {[%emt 0:01:27]} 23. Ng4 {[%emt 0:00:22]} h5 {[%emt 0:01:29]} 24. Nxe4 {[%emt 0:00:41]} dxe4 {[%emt 0:00:25]} 25. Bc4+ {[%emt 0:00:02]} Nd5 {[%emt 0:00:15]} 26. Nh2 {[%emt 0:00:15]} g5 {[%emt 0:00:02]} 27. Bg3 {[%emt 0:01:16]} h4 {[%emt 0:00:48]} 28. Bxh4 {[%emt 0:01:43]} gxh4 {[%emt 0:00:03]} 29. Qf4 {[%emt 0:00:02]} Qd7 {[%emt 0:00:55]} 30. Qxh4 {[%emt 0:00:02]} Kf7 {[%emt 0:02:20]} 31. g4 {[%emt 0:01:47]} Rh8 {[%emt 0:00:33]} 32. Qg3 {[%emt 0:00:02]} Rcg8 {[%emt 0:00:01]} 33. Kf1 {[%emt 0:00:36]} Bd8 {[%emt 0:00:30]} 34. Qf4 {[%emt 0:00:13]} Bc7 {[%emt 0:00:04]} 35. Qxf5 {[%emt 0:00:19]} Qxf5 {[%emt 0:00:01]} 36. gxf5 {[%emt 0:00:00]} Bxh2 {[%emt 0:00:01]} 37. Bxd5+ {[%emt 0:02:34]} cxd5 {[%emt 0:00:25]} 38. c6 {[%emt 0:00:00]} bxc6 {[%emt 0:00:12]} 39. Rxc6 {[%emt 0:00:03]} Rxh3 {[%emt 0:00:05]} 40. Rc5 {[%emt 0:00:13]} Rxb3 {[%emt 0:00:06]} 41. Rxd5 {[%emt 0:00:01]} Rg1+ {[%emt 0:00:02]} 0-1

[Event "1st Konde Memorial 2025"]
[Site "Pune"]
[Date "2025.02.02"]
[Round "4.12"]
[White "Patil Varad Sayaji"]
[Black "Om Nagnath Lamkane"]
[Result "0-1"]
[Annotator "NA"]
[ECO "B92"]
[WhiteElo "1568"]
[BlackElo "1957"]
[PlyCount "94"]
[EventDate "2025.02.01"]
[EventType "swiss"]
[EventCountry "IND"]
[SourceTitle "playchess.com"]
[Source "ChessBase"]
[SourceQuality "1"]
[TimeControl "900+5"]

1. e4 {[%emt 0:00:06]} c5 {[%emt 0:00:01]} 2. Nf3 {[%emt 0:00:02]} d6 {[%emt 0:00:01]} 3. d4 {[%emt 0:00:00]} cxd4 {[%emt 0:00:01]} 4. Nxd4 {[%emt 0:00:02]} Nf6 {[%emt 0:00:00]} 5. Nc3 {[%emt 0:00:01]} a6 {[%emt 0:00:01]} 6. Be2 {[%emt 0:00:01]} e5 {[%emt 0:00:01]} 7. Nb3 {[%emt 0:15:28]} Be7 {[%emt 0:00:01]} 8. Be3 {[%emt 0:00:00]} Be6 {[%emt 0:00:00]} 9. O-O {[%emt 0:00:00]} O-O {[%emt 0:00:05]} 10. f3 {[%emt 0:00:00]} d5 {[%emt 0:00:09]} 11. exd5 {[%emt 0:00:00]} Nxd5 {[%emt 0:00:01]} 12. Nxd5 {[%emt 0:00:00]} Bxd5 {[%emt 0:00:14]} 13. Qe1 {[%emt 0:00:00]} Qc7 {[%emt 0:00:46]} 14. Rc1 {[%emt 0:00:00]} Nd7 {[%emt 0:00:53]} 15. Qf2 {[%emt 0:00:00]} Rac8 {[%emt 0:00:22]} 16. Rfd1 {[%emt 0:00:00]} Bc6 {[%emt 0:00:12]} 17. Bc5 {[%emt 0:00:00]} Nxc5 {[%emt 0:00:15]} 18. Nxc5 {[%emt 0:00:00]} Bxf3 {[%emt 0:00:02]} 19. Qxf3 {[%emt 0:00:00]} Bxc5+ {[%emt 0:03:00]} 20. Kh1 {[%emt 0:00:00]} Rcd8 {[%emt 0:01:19]} 21. Bd3 {[%emt 0:00:00]} g6 {[%emt 0:09:26]} 22. Bc4 {[%emt 0:00:00]} Kg7 {[%emt 0:00:00]} 23. Bd5 {[%emt 0:00:00]} b5 {[%emt 0:00:00]} 24. Bb3 {[%emt 0:00:00]} f5 {[%emt 0:00:00]} 25. c4 {[%emt 0:00:00]} b4 {[%emt 0:00:00]} 26. Rd5 {[%emt 0:00:00]} e4 {[%emt 0:00:00]} 27. Qe2 {[%emt 0:00:00]} Rd6 {[%emt 0:00:00]} 28. Qd2 {[%emt 0:00:00]} Rxd5 {[%emt 0:00:00]} 29. cxd5 {[%emt 0:00:00]} Qb6 {[%emt 0:00:00]} 30. Qc2 {[%emt 0:00:00]} Rc8 {[%emt 0:00:00]} 31. Qc4 {[%emt 0:00:00]} Rc7 {[%emt 0:00:00]} 32. Qe2 {[%emt 0:00:43]} Bd6 {[%emt 0:00:00]} 33. Rxc7+ {[%emt 0:00:07]} Qxc7 {[%emt 0:00:00]} 34. Qc4 {[%emt 0:00:30]} Qxc4 {[%emt 0:00:00]} 35. Bxc4 {[%emt 0:00:02]} a5 {[%emt 0:00:00]} 36. b3 {[%emt 0:00:03]} Kf6 {[%emt 0:00:00]} 37. g3 {[%emt 0:00:04]} Ke5 {[%emt 0:00:00]} 38. Kg2 {[%emt 0:00:04]} g5 {[%emt 0:00:00]} 39. Kf2 {[%emt 0:00:06]} f4 {[%emt 0:00:00]} 40. gxf4+ {[%emt 0:00:20]} gxf4 {[%emt 0:00:00]} 41. Ke2 {[%emt 0:00:08]} f3+ {[%emt 0:00:00]} 42. Kf2 {[%emt 0:00:06]} Kf4 {[%emt 0:00:00]} 43. Bf1 {[%emt 0:00:26]} e3+ {[%emt 0:00:00]} 44. Ke1 {[%emt 0:00:02]} e2 {[%emt 0:00:00]} 45. Bh3 {[%emt 0:00:07]} Ke3 {[%emt 0:00:00]} 46. Bg2 {[%emt 0:00:13]} Be5 {[%emt 0:00:00]} 47. Bxf3 {[%emt 0:00:06]} Bc3# {[%emt 0:00:00]} 0-1

[Event "1st Konde Memorial 2025"]
[Site "Pune"]
[Date "2025.02.02"]
[Round "4.13"]
[White "Lokhande Vaibhav"]
[Black "Joshi Aditya Shripad"]
[Result "0-1"]
[Annotator "NA"]
[ECO "B04"]
[WhiteElo "1607"]
[BlackElo "1835"]
[PlyCount "66"]
[EventDate "2025.02.01"]
[EventType "swiss"]
[EventCountry "IND"]
[SourceTitle "playchess.com"]
[Source "ChessBase"]
[SourceQuality "1"]
[TimeControl "900+5"]

1. e4 {[%emt 0:00:03]} d6 {[%emt 0:00:07]} 2. d4 {[%emt 0:00:03]} Nf6 {[%emt 0:00:02]} 3. Nc3 {[%emt 0:00:02]} g6 {[%emt 0:00:02]} 4. Bg5 {[%emt 0:00:02]} Bg7 {[%emt 0:00:02]} 5. e5 {[%emt 0:00:02]} Nfd7 {[%emt 0:00:02]} 6. exd6 {[%emt 0:00:02]} cxd6 {[%emt 0:00:01]} 7. Nf3 {[%emt 0:00:12]} O-O {[%emt 0:00:05]} 8. Bc4 {[%emt 0:00:11]} Nc6 {[%emt 0:15:24]} 9. O-O {[%emt 0:00:16]} Nb6 {[%emt 0:00:00]} 10. Bb3 {[%emt 0:00:06]} Bg4 {[%emt 0:00:00]} 11. Be3 {[%emt 0:15:01]} Qd7 12. Ne2 {[%emt 0:00:00]} Bxf3 {[%emt 0:00:00]} 13. gxf3 {[%emt 0:00:00]} e5 {[%emt 0:00:00]} 14. c3 {[%emt 0:00:00]} Kh8 {[%emt 0:00:00]} 15. Qd2 {[%emt 0:00:00]} Qh3 {[%emt 0:00:00]} 16. f4 {[%emt 0:00:00]} Ne7 {[%emt 0:00:40]} 17. Ng3 {[%emt 0:00:00]} h5 {[%emt 0:00:00]} 18. fxe5 {[%emt 0:00:00]} dxe5 {[%emt 0:00:00]} 19. Bh6 {[%emt 0:00:00]} h4 {[%emt 0:00:00]} 20. Bxg7+ {[%emt 0:00:00]} Kxg7 {[%emt 0:00:00]} 21. Qg5 {[%emt 0:00:00]} hxg3 {[%emt 0:00:00]} 22. fxg3 {[%emt 0:00:00]} Nf5 {[%emt 0:00:00]} 23. dxe5 {[%emt 0:00:00]} Nd7 {[%emt 0:00:00]} 24. g4 {[%emt 0:00:36]} Qe3+ {[%emt 0:00:00]} 25. Qxe3 {[%emt 0:00:04]} Nxe3 {[%emt 0:00:00]} 26. Rf3 {[%emt 0:00:15]} Nxg4 {[%emt 0:00:00]} 27. e6 {[%emt 0:00:11]} fxe6 {[%emt 0:00:00]} 28. Rd3 {[%emt 0:00:07]} Nc5 {[%emt 0:00:00]} 29. Rg3 {[%emt 0:00:05]} Nxb3 {[%emt 0:00:00]} 30. axb3 {[%emt 0:00:01]} Ne5 {[%emt 0:00:00]} 31. Re3 {[%emt 0:00:04]} Rf5 {[%emt 0:00:00]} 32. Rd1 {[%emt 0:00:22]} Raf8 {[%emt 0:00:00]} 33. Rde1 {[%emt 0:00:00]} Nf3+ {[%emt 0:00:00]} 0-1

[Event "1st Konde Memorial 2025"]
[Site "Pune"]
[Date "2025.02.02"]
[Round "4.14"]
[White "Limaye Kavish"]
[Black "Sane, Akshay"]
[Result "1/2-1/2"]
[Annotator "NA"]
[ECO "D32"]
[WhiteElo "1737"]
[BlackElo "1927"]
[PlyCount "81"]
[EventDate "2025.02.01"]
[EventType "swiss"]
[EventCountry "IND"]
[SourceTitle "playchess.com"]
[Source "ChessBase"]
[SourceQuality "1"]
[TimeControl "900+5"]

1. c4 {[%emt 0:00:05]} Nf6 {[%emt 0:00:05]} 2. Nc3 {[%emt 0:00:05]} e6 {[%emt 0:00:05]} 3. d4 {[%emt 0:00:05]} c5 {[%emt 0:00:05]} 4. e3 {[%emt 0:00:05]} d5 {[%emt 0:00:05]} 5. dxc5 {[%emt 0:00:05]} Bxc5 {[%emt 0:00:05]} 6. Nf3 {[%emt 0:00:05]} O-O {[%emt 0:00:05]} 7. cxd5 {[%emt 0:00:05]} exd5 {[%emt 0:00:05]} 8. Be2 {[%emt 0:00:08]} Nc6 {[%emt 0:00:00]} 9. O-O {[%emt 0:00:05]} Be6 {[%emt 0:00:00]} 10. b3 {[%emt 0:00:05]} Rc8 {[%emt 0:00:02]} 11. Bb2 {[%emt 0:00:05]} a6 {[%emt 0:00:05]} 12. Rc1 {[%emt 0:00:05]} Be7 {[%emt 0:00:05]} 13. h3 {[%emt 0:00:05]} Ne4 {[%emt 0:00:05]} 14. Nxe4 {[%emt 0:00:05]} dxe4 {[%emt 0:00:05]} 15. Nd4 {[%emt 0:00:05]} Nxd4 {[%emt 0:00:05]} 16. Qxd4 {[%emt 0:00:05]} Qxd4 {[%emt 0:00:05]} 17. exd4 {[%emt 0:00:05]} b5 {[%emt 0:00:05]} 18. Rxc8 {[%emt 0:00:05]} Rxc8 {[%emt 0:00:05]} 19. Rc1 {[%emt 0:00:05]} Rxc1+ {[%emt 0:00:05]} 20. Bxc1 {[%emt 0:00:05]} Bf6 {[%emt 0:00:05]} 21. Be3 {[%emt 0:00:05]} Kf8 {[%emt 0:00:05]} 22. f3 {[%emt 0:05:32]} Bd5 {[%emt 0:02:24]} 23. Kf2 {[%emt 0:00:05]} Ke7 {[%emt 0:00:05]} 24. fxe4 {[%emt 0:00:05]} Bxe4 {[%emt 0:00:05]} 25. Bf3 {[%emt 0:00:05]} Bb1 {[%emt 0:00:05]} 26. a4 {[%emt 0:00:05]} bxa4 {[%emt 0:00:05]} 27. bxa4 {[%emt 0:00:05]} Bc2 {[%emt 0:00:05]} 28. Be2 {[%emt 0:00:05]} a5 {[%emt 0:00:05]} 29. Bb5 {[%emt 0:00:05]} Kd6 {[%emt 0:00:05]} 30. Be8 {[%emt 0:00:05]} Bg6 {[%emt 0:00:05]} 31. Ke2 {[%emt 0:00:05]} Kd5 {[%emt 0:00:05]} 32. Bd2 {[%emt 0:00:05]} Bd8 {[%emt 0:00:05]} 33. Bc1 {[%emt 0:00:05]} f6 {[%emt 0:00:05]} 34. Bxg6 {[%emt 0:00:05]} hxg6 {[%emt 0:00:05]} 35. Kd3 {[%emt 0:00:05]} f5 {[%emt 0:00:05]} 36. Bd2 {[%emt 0:00:05]} g5 {[%emt 0:00:05]} 37. Be1 {[%emt 0:00:05]} g4 {[%emt 0:00:05]} 38. hxg4 {[%emt 0:00:05]} fxg4 {[%emt 0:00:05]} 39. Bg3 {[%emt 0:07:00]} Bb6 {[%emt 0:08:26]} 40. Be5 {[%emt 0:00:05]} g6 {[%emt 0:00:02]} 41. Bf6 {[%emt 0:00:03]} 1/2-1/2

[Event "1st Konde Memorial 2025"]
[Site "Pune"]
[Date "2025.02.02"]
[Round "4.15"]
[White "Nihira Koul"]
[Black "Koli Aditya"]
[Result "1-0"]
[Annotator "NA"]
[ECO "A25"]
[WhiteElo "1889"]
[BlackElo "1657"]
[PlyCount "47"]
[EventDate "2025.02.01"]
[EventType "swiss"]
[EventCountry "IND"]
[SourceTitle "playchess.com"]
[Source "ChessBase"]
[SourceQuality "1"]
[TimeControl "900+5"]

1. c4 {[%emt 0:00:02]} e5 {[%emt 0:00:01]} 2. g3 {[%emt 0:00:05]} d6 {[%emt 0:00:01]} 3. Bg2 {[%emt 0:00:02]} Nc6 {[%emt 0:00:01]} 4. Nc3 {[%emt 0:00:01]} Be6 {[%emt 0:00:01]} 5. d3 {[%emt 0:00:05]} Qd7 {[%emt 0:00:01]} 6. e4 {[%emt 0:00:04]} O-O-O {[%emt 0:00:03]} 7. Nge2 {[%emt 0:00:03]} f5 {[%emt 0:00:18]} 8. Rb1 {[%emt 0:00:10]} Nf6 {[%emt 0:00:03]} 9. exf5 {[%emt 0:00:12]} Bxf5 {[%emt 0:00:10]} 10. b4 {[%emt 0:00:03]} Bh3 {[%emt 0:00:42]} 11. O-O {[%emt 0:00:27]} Be7 {[%emt 0:00:21]} 12. b5 {[%emt 0:00:45]} Nd4 {[%emt 0:00:17]} 13. Nxd4 {[%emt 0:00:04]} exd4 {[%emt 0:00:22]} 14. Ne2 {[%emt 0:00:28]} Bxg2 {[%emt 0:00:35]} 15. Kxg2 {[%emt 0:00:01]} d5 {[%emt 0:00:06]} 16. Qa4 {[%emt 0:00:40]} Kb8 {[%emt 0:02:23]} 17. Nxd4 {[%emt 0:00:14]} Ka8 {[%emt 0:01:12]} 18. Be3 {[%emt 0:02:25]} Bc5 {[%emt 0:01:49]} 19. Nc6 {[%emt 0:03:18]} Bb6 {[%emt 0:01:06]} 20. Bxb6 {[%emt 0:00:08]} a6 {[%emt 0:00:13]} 21. Be3 {[%emt 0:00:36]} Qc8 {[%emt 0:00:26]} 22. bxa6 {[%emt 0:00:10]} bxa6 {[%emt 0:06:44]} 23. Rb8+ {[%emt 0:00:08]} Qxb8 {[%emt 0:00:00]} 24. Qxa6+ {[%emt 0:00:03]} 1-0

[Event "1st Konde Memorial 2025"]
[Site "Pune"]
[Date "2025.02.02"]
[Round "4.16"]
[White "Ishan Arjun P Y"]
[Black "Bawalekar, Jeetesh"]
[Result "1-0"]
[Annotator "NA"]
[ECO "B23"]
[WhiteElo "1699"]
[BlackElo "1866"]
[PlyCount "45"]
[EventDate "2025.02.01"]
[EventType "swiss"]
[EventCountry "IND"]
[SourceTitle "playchess.com"]
[Source "ChessBase"]
[SourceQuality "1"]
[TimeControl "900+5"]

1. e4 {[%emt 0:00:04]} c5 {[%emt 0:00:04]} 2. Nc3 {[%emt 0:00:04]} Nc6 {[%emt 0:00:17]} 3. Bb5 {[%emt 0:15:12]} g6 {[%emt 0:00:14]} 4. Bxc6 {[%emt 0:00:00]} bxc6 {[%emt 0:00:11]} 5. f4 {[%emt 0:00:00]} Bg7 {[%emt 0:00:07]} 6. d3 {[%emt 0:00:00]} d6 {[%emt 0:02:15]} 7. Nf3 {[%emt 0:00:00]} Nf6 {[%emt 0:00:21]} 8. O-O {[%emt 0:00:00]} O-O {[%emt 0:00:17]} 9. Qe1 {[%emt 0:00:00]} Bg4 {[%emt 0:01:23]} 10. Qh4 {[%emt 0:00:00]} Bxf3 {[%emt 0:00:19]} 11. Rxf3 {[%emt 0:00:00]} e5 {[%emt 0:01:12]} 12. fxe5 {[%emt 0:00:00]} dxe5 {[%emt 0:00:03]} 13. Bg5 {[%emt 0:00:00]} Qd4+ {[%emt 0:00:17]} 14. Kh1 {[%emt 0:00:00]} Nh5 {[%emt 0:01:04]} 15. Raf1 {[%emt 0:00:00]} h6 {[%emt 0:03:19]} 16. Be3 {[%emt 0:00:00]} Qd8 {[%emt 0:00:02]} 17. Qh3 {[%emt 0:00:00]} Qe7 {[%emt 0:00:53]} 18. g4 {[%emt 0:00:00]} Nf4 {[%emt 0:00:31]} 19. Bxf4 {[%emt 0:00:00]} exf4 {[%emt 0:00:06]} 20. Rxf4 {[%emt 0:00:00]} c4 {[%emt 0:00:45]} 21. dxc4 {[%emt 0:00:00]} g5 {[%emt 0:00:11]} 22. R4f3 {[%emt 0:00:00]} Qxe4 {[%emt 0:00:08]} 23. Nxe4 {[%emt 0:00:00]} 1-0